[Event "Live Chess"]
[Site "Chess.com"]
[Date "2024.06.02"]
[Round "-"]
[White "Ferrarifan27"]
[Black "wadsy27"]
[Result "1/2-1/2"]
[WhiteElo "2137"]
[BlackElo "2568"]
[TimeControl "300"]
[EndTime "2:32:40 PDT"]
[Termination "Game drawn by stalemate"]

1. e4 {[%clk 0:04:58.4]} 1... c5 {[%clk 0:04:57.9]} 2. Nf3 {[%clk 0:04:56.9]}
2... e6 {[%clk 0:04:57.6]} 3. d4 {[%clk 0:04:55.6]} 3... cxd4 {[%clk 0:04:57.5]}
4. Nxd4 {[%clk 0:04:54.9]} 4... Nc6 {[%clk 0:04:57.3]} 5. Be3 {[%clk 0:04:52.3]}
5... Nf6 {[%clk 0:04:55.5]} 6. Bd3 {[%clk 0:04:49.7]} 6... d5 {[%clk 0:04:54.3]}
7. exd5 {[%clk 0:04:46.1]} 7... Nxd5 {[%clk 0:04:49.9]} 8. Nxc6 {[%clk
0:04:45.3]} 8... bxc6 {[%clk 0:04:44.4]} 9. Bd2 {[%clk 0:04:44.1]} 9... Bc5
{[%clk 0:04:38.2]} 10. O-O {[%clk 0:04:42.5]} 10... Qf6 {[%clk 0:04:28]} 11. Nc3
{[%clk 0:04:36.9]} 11... Nxc3 {[%clk 0:04:05.8]} 12. Bxc3 {[%clk 0:04:33.8]}
12... Bd4 {[%clk 0:04:05.1]} 13. Be4 {[%clk 0:04:26.9]} 13... Bxc3 {[%clk
0:04:04]} 14. Bxc6+ {[%clk 0:04:25.7]} 14... Ke7 {[%clk 0:04:03.1]} 15. Bxa8
{[%clk 0:04:20.2]} 15... Ba6 {[%clk 0:03:58.3]} 16. Bc6 {[%clk 0:04:11.5]} 16...
Rd8 {[%clk 0:03:56.3]} 17. Qf3 {[%clk 0:04:06]} 17... Qxf3 {[%clk 0:03:44.1]}
18. Bxf3 {[%clk 0:04:04.7]} 18... Bxf1 {[%clk 0:03:43]} 19. bxc3 {[%clk
0:04:02.3]} 19... Bc4 {[%clk 0:03:39.7]} 20. Rb1 {[%clk 0:03:48.6]} 20... Rd2
{[%clk 0:03:31.8]} 21. Rb7+ {[%clk 0:03:39.2]} 21... Kf6 {[%clk 0:03:30.9]} 22.
Rxa7 {[%clk 0:03:37.3]} 22... Rxc2 {[%clk 0:03:29.9]} 23. h3 {[%clk 0:03:33.4]}
23... Rxc3 {[%clk 0:03:26.4]} 24. a4 {[%clk 0:03:28.8]} 24... Rc1+ {[%clk
0:03:22.6]} 25. Kh2 {[%clk 0:03:27.2]} 25... Rc2 {[%clk 0:03:22.2]} 26. Kg3
{[%clk 0:03:25.8]} 26... Ra2 {[%clk 0:03:21.3]} 27. a5 {[%clk 0:03:24.4]} 27...
Ra3 {[%clk 0:03:18.1]} 28. Kh2 {[%clk 0:03:12.5]} 28... g6 {[%clk 0:03:17.2]}
29. Bb7 {[%clk 0:03:04.9]} 29... h5 {[%clk 0:03:10.9]} 30. a6 {[%clk 0:03:03.5]}
30... Ra2 {[%clk 0:03:08]} 31. Ra8 {[%clk 0:02:43.3]} 31... h4 {[%clk
0:02:51.3]} 32. a7 {[%clk 0:02:28.8]} 32... Bf1 {[%clk 0:02:38.3]} 33. Bc6
{[%clk 0:02:14.3]} 33... Ke5 {[%clk 0:02:30.5]} 34. Kg1 {[%clk 0:01:58.4]} 34...
Ra1 {[%clk 0:02:25.7]} 35. Kh2 {[%clk 0:01:55.7]} 35... f5 {[%clk 0:02:06.9]}
36. Rg8 {[%clk 0:01:18.9]} 36... Rxa7 {[%clk 0:02:03.4]} 37. Rxg6 {[%clk
0:01:18.2]} 37... Rc7 {[%clk 0:01:53]} 38. Bf3 {[%clk 0:01:15.7]} 38... Rc2
{[%clk 0:01:48]} 39. Kg1 {[%clk 0:01:09.8]} 39... Bd3 {[%clk 0:01:37.7]} 40. Rh6
{[%clk 0:01:06.6]} 40... Rc1+ {[%clk 0:01:36.8]} 41. Kh2 {[%clk 0:01:05.8]}
41... Rf1 {[%clk 0:01:36]} 42. Rxh4 {[%clk 0:01:04.1]} 42... Rxf2 {[%clk
0:01:35.4]} 43. Rb4 {[%clk 0:01:01.4]} 43... Kf6 {[%clk 0:01:07]} 44. Rb6 {[%clk
0:01:00.2]} 44... Bc4 {[%clk 0:00:55.6]} 45. h4 {[%clk 0:00:57.9]} 45... f4
{[%clk 0:00:51.6]} 46. Rb4 {[%clk 0:00:50.9]} 46... Rc2 {[%clk 0:00:49.4]} 47.
h5 {[%clk 0:00:44.4]} 47... Kg5 {[%clk 0:00:47.5]} 48. Rb6 {[%clk 0:00:37.6]}
48... Bd5 {[%clk 0:00:24.9]} 49. Bxd5 {[%clk 0:00:32.7]} 49... exd5 {[%clk
0:00:24.1]} 50. h6 {[%clk 0:00:32]} 50... Rc8 {[%clk 0:00:19.9]} 51. Rb5 {[%clk
0:00:27.9]} 51... Rd8 {[%clk 0:00:16.4]} 52. h7 {[%clk 0:00:25.6]} 52... Kg6
{[%clk 0:00:13.5]} 53. Rxd5 {[%clk 0:00:24.2]} 53... Rh8 {[%clk 0:00:11.5]} 54.
Rd7 {[%clk 0:00:21.2]} 54... Rxh7+ {[%clk 0:00:09.8]} 55. Rxh7 {[%clk
0:00:20.9]} 55... Kxh7 {[%clk 0:00:09.7]} 56. Kh3 {[%clk 0:00:20.2]} 56... f3
{[%clk 0:00:06.5]} 57. gxf3 {[%clk 0:00:17.4]} 57... Kg7 {[%clk 0:00:06.1]} 58.
Kg4 {[%clk 0:00:16.7]} 58... Kg6 {[%clk 0:00:05.3]} 59. Kf4 {[%clk 0:00:14.4]}
59... Kf6 {[%clk 0:00:05]} 60. Ke4 {[%clk 0:00:13.6]} 60... Ke6 {[%clk
0:00:04.6]} 61. f4 {[%clk 0:00:12.9]} 61... Kf6 {[%clk 0:00:04.1]} 62. f5 {[%clk
0:00:12.4]} 62... Kf7 {[%clk 0:00:03.8]} 63. Kf4 {[%clk 0:00:11.9]} 63... Kf6
{[%clk 0:00:03.4]} 64. Kg4 {[%clk 0:00:11.1]} 64... Kf7 {[%clk 0:00:03.3]} 65.
Kg5 {[%clk 0:00:10.4]} 65... Kg7 {[%clk 0:00:03]} 66. f6+ {[%clk 0:00:09.7]}
66... Kf7 {[%clk 0:00:02.6]} 67. Kf5 {[%clk 0:00:09.4]} 67... Kf8 {[%clk
0:00:02.4]} 68. Kg6 {[%clk 0:00:08.8]} 68... Kg8 {[%clk 0:00:01.9]} 69. f7+
{[%clk 0:00:08.3]} 69... Kf8 {[%clk 0:00:01.6]} 70. Kf6 {[%clk 0:00:07.9]}
1/2-1/2

[Event "Live Chess"]
[Site "Chess.com"]
[Date "2024.06.02"]
[Round "-"]
[White "MagnersCarlsberg2870"]
[Black "friarnator"]
[Result "0-1"]
[WhiteElo "1810"]
[BlackElo "2193"]
[TimeControl "300"]
[EndTime "2:32:41 PDT"]
[Termination "friarnator won by resignation"]

1. d4 {[%clk 0:04:57.9]} 1... Nf6 {[%clk 0:04:58.7]} 2. Nf3 {[%clk 0:04:56.8]}
2... e6 {[%clk 0:04:56.5]} 3. e3 {[%clk 0:04:55.5]} 3... c5 {[%clk 0:04:55.1]}
4. Bd3 {[%clk 0:04:54.1]} 4... Nc6 {[%clk 0:04:53.7]} 5. c3 {[%clk 0:04:53.1]}
5... b6 {[%clk 0:04:53]} 6. Nbd2 {[%clk 0:04:52.1]} 6... Bb7 {[%clk 0:04:52.3]}
7. Qe2 {[%clk 0:04:51.4]} 7... d5 {[%clk 0:04:51.4]} 8. O-O {[%clk 0:04:50.5]}
8... Be7 {[%clk 0:04:50.6]} 9. h3 {[%clk 0:04:47.2]} 9... O-O {[%clk 0:04:49.4]}
10. e4 {[%clk 0:04:45.1]} 10... dxe4 {[%clk 0:04:47.8]} 11. Nxe4 {[%clk
0:04:44.2]} 11... cxd4 {[%clk 0:04:42.8]} 12. Nxf6+ {[%clk 0:04:42.3]} 12...
Bxf6 {[%clk 0:04:42]} 13. Qe4 {[%clk 0:04:41.4]} 13... g6 {[%clk 0:04:41]} 14.
Bh6 {[%clk 0:04:40.2]} 14... Bg7 {[%clk 0:04:37.7]} 15. Bxg7 {[%clk 0:04:36]}
15... Kxg7 {[%clk 0:04:37.6]} 16. Rad1 {[%clk 0:04:26.2]} 16... Rb8 {[%clk
0:04:32.6]} 17. Ne5 {[%clk 0:04:13.9]} 17... Qd6 {[%clk 0:04:18.3]} 18. Ng4
{[%clk 0:03:58.1]} 18... f5 {[%clk 0:04:10.1]} 0-1

[Event "Live Chess"]
[Site "Chess.com"]
[Date "2024.06.02"]
[Round "-"]
[White "raimundklein"]
[Black "defenderalist"]
[Result "1-0"]
[WhiteElo "1570"]
[BlackElo "1537"]
[TimeControl "300"]
[EndTime "2:32:49 PDT"]
[Termination "raimundklein won by resignation"]

1. e4 {[%clk 0:04:56.8]} 1... c5 {[%clk 0:04:58]} 2. Nf3 {[%clk 0:04:55.2]} 2...
d6 {[%clk 0:04:57.9]} 3. Bb5+ {[%clk 0:04:52.3]} 3... Nc6 {[%clk 0:04:55.7]} 4.
d4 {[%clk 0:04:44]} 4... cxd4 {[%clk 0:04:54.6]} 5. Nxd4 {[%clk 0:04:43.2]} 5...
Bd7 {[%clk 0:04:53.8]} 6. Nxc6 {[%clk 0:04:27.2]} 6... bxc6 {[%clk 0:04:50.5]}
7. Bd3 {[%clk 0:04:25.6]} 7... g6 {[%clk 0:04:46.7]} 8. c4 {[%clk 0:04:20.3]}
8... Bg7 {[%clk 0:04:45.6]} 9. Nc3 {[%clk 0:04:19.2]} 9... Nf6 {[%clk
0:04:41.4]} 10. O-O {[%clk 0:04:17.2]} 10... O-O {[%clk 0:04:39.7]} 11. h3
{[%clk 0:04:08.4]} 11... Qc8 {[%clk 0:04:23.2]} 12. f4 {[%clk 0:04:02.3]} 12...
Bxh3 {[%clk 0:04:15.8]} 13. gxh3 {[%clk 0:04:00.8]} 13... Qxh3 {[%clk
0:04:15.2]} 14. Qf3 {[%clk 0:03:57.2]} 14... Qd7 {[%clk 0:04:04.5]} 15. Be3
{[%clk 0:03:46.6]} 15... Ne8 {[%clk 0:03:56.3]} 16. Rac1 {[%clk 0:03:40.2]}
16... f5 {[%clk 0:03:49.8]} 17. exf5 {[%clk 0:03:34.6]} 17... gxf5 {[%clk
0:03:49.4]} 18. Kf2 {[%clk 0:03:11.1]} 18... e5 {[%clk 0:03:45.6]} 19. Rh1
{[%clk 0:03:02.4]} 19... e4 {[%clk 0:03:37]} 20. Nxe4 {[%clk 0:02:54.5]} 20...
fxe4 {[%clk 0:03:35.5]} 21. Bxe4 {[%clk 0:02:53.3]} 21... Nf6 {[%clk 0:03:30.7]}
22. Bxc6 {[%clk 0:02:52.1]} 22... Qc7 {[%clk 0:02:55.3]} 23. Bxa8 {[%clk
0:02:47.3]} 23... d5 {[%clk 0:02:48.2]} 24. Bxd5+ {[%clk 0:02:44.5]} 24... Nxd5
{[%clk 0:02:46.6]} 25. Qxd5+ {[%clk 0:02:44.4]} 25... Kh8 {[%clk 0:02:45.1]} 26.
Rcg1 {[%clk 0:02:39]} 26... Rxf4+ {[%clk 0:02:25.8]} 27. Ke2 {[%clk 0:02:37.9]}
27... Rxc4 {[%clk 0:02:15.1]} 28. Qd3 {[%clk 0:02:24.9]} 28... Rc2+ {[%clk
0:02:06.8]} 29. Kd1 {[%clk 0:02:20.4]} 29... Bxb2 {[%clk 0:01:28.7]} 30. Bd4+
{[%clk 0:02:07.9]} 1-0

[Event "Live Chess"]
[Site "Chess.com"]
[Date "2024.06.02"]
[Round "-"]
[White "StoreySniper"]
[Black "uselessduffer"]
[Result "1-0"]
[WhiteElo "2521"]
[BlackElo "2388"]
[TimeControl "300"]
[EndTime "2:33:16 PDT"]
[Termination "StoreySniper won on time"]

1. e4 {[%clk 0:04:58]} 1... g6 {[%clk 0:04:58.2]} 2. d4 {[%clk 0:04:56.5]} 2...
Bg7 {[%clk 0:04:57.8]} 3. c4 {[%clk 0:04:55.3]} 3... d6 {[%clk 0:04:52.8]} 4.
Nc3 {[%clk 0:04:53.6]} 4... Nc6 {[%clk 0:04:51.5]} 5. Nge2 {[%clk 0:04:52.1]}
5... e5 {[%clk 0:04:49.6]} 6. Be3 {[%clk 0:04:49.7]} 6... exd4 {[%clk
0:04:43.1]} 7. Nxd4 {[%clk 0:04:48.7]} 7... Nge7 {[%clk 0:04:42.8]} 8. Be2
{[%clk 0:04:43.6]} 8... O-O {[%clk 0:04:37.9]} 9. O-O {[%clk 0:04:42]} 9... f5
{[%clk 0:04:28.9]} 10. Nxc6 {[%clk 0:04:10.6]} 10... bxc6 {[%clk 0:03:45.9]} 11.
Bd4 {[%clk 0:04:01.3]} 11... fxe4 {[%clk 0:02:30.8]} 12. Bxg7 {[%clk 0:03:57.3]}
12... Kxg7 {[%clk 0:02:30.7]} 13. Qd4+ {[%clk 0:03:49.1]} 13... Kg8 {[%clk
0:02:27.5]} 14. Nxe4 {[%clk 0:03:47.1]} 14... Nf5 {[%clk 0:02:23.8]} 15. Qc3
{[%clk 0:03:41.4]} 15... Qe7 {[%clk 0:02:13.5]} 16. Bd3 {[%clk 0:03:33.6]} 16...
Qe5 {[%clk 0:01:59.3]} 17. Qxe5 {[%clk 0:03:31.2]} 17... dxe5 {[%clk 0:01:59.2]}
18. Rfe1 {[%clk 0:03:25.6]} 18... Nd4 {[%clk 0:01:56.5]} 19. Nc5 {[%clk
0:03:22.5]} 19... Re8 {[%clk 0:01:46.3]} 20. Re3 {[%clk 0:03:11]} 20... Bf5
{[%clk 0:01:41.5]} 21. Rae1 {[%clk 0:02:54.8]} 21... Bxd3 {[%clk 0:01:35.3]} 22.
Rxd3 {[%clk 0:02:52.8]} 22... Rad8 {[%clk 0:01:33]} 23. Kf1 {[%clk 0:02:41.9]}
23... Kf7 {[%clk 0:01:27.8]} 24. f3 {[%clk 0:02:15]} 24... Kf6 {[%clk
0:01:03.6]} 25. Kf2 {[%clk 0:02:11.5]} 25... Kf5 {[%clk 0:01:00.9]} 26. b3
{[%clk 0:02:00.9]} 26... h5 {[%clk 0:00:48.7]} 27. h4 {[%clk 0:01:55.5]} 27...
Ne6 {[%clk 0:00:45.6]} 28. Rxd8 {[%clk 0:01:46.3]} 28... Rxd8 {[%clk 0:00:45.5]}
29. Ne4 {[%clk 0:01:44.2]} 29... Nf4 {[%clk 0:00:41.4]} 30. Rg1 {[%clk
0:01:11.8]} 30... Rd4 {[%clk 0:00:33.3]} 31. Rh1 {[%clk 0:00:39.7]} 31... a5
{[%clk 0:00:30.5]} 32. g3 {[%clk 0:00:37]} 32... Nd3+ {[%clk 0:00:26.1]} 33. Ke3
{[%clk 0:00:35.2]} 33... Nb4 {[%clk 0:00:24.9]} 34. Rh2 {[%clk 0:00:27.5]} 34...
Rd1 {[%clk 0:00:21.5]} 35. a3 {[%clk 0:00:16.4]} 35... Na6 {[%clk 0:00:15.6]}
36. Rd2 {[%clk 0:00:15.6]} 36... Re1+ {[%clk 0:00:12.7]} 37. Kf2 {[%clk
0:00:14.1]} 37... Rb1 {[%clk 0:00:11.1]} 38. Rd7 {[%clk 0:00:12.8]} 38... Rxb3
{[%clk 0:00:08.8]} 39. Rf7+ {[%clk 0:00:11]} 39... Ke6 {[%clk 0:00:08.4]} 40.
Rf6+ {[%clk 0:00:10.5]} 40... Ke7 {[%clk 0:00:08.1]} 41. Rxc6 {[%clk 0:00:08.7]}
41... Rxa3 {[%clk 0:00:05.2]} 42. Rxa6 {[%clk 0:00:07.6]} 42... a4 {[%clk
0:00:04.8]} 43. Rxg6 {[%clk 0:00:05.7]} 43... Ra2+ {[%clk 0:00:04.3]} 44. Ke3
{[%clk 0:00:04.8]} 44... a3 {[%clk 0:00:03.9]} 45. Ra6 {[%clk 0:00:03.5]} 45...
Ra1 {[%clk 0:00:03.5]} 46. Nc3 {[%clk 0:00:02.6]} 46... Re1+ {[%clk 0:00:01.7]}
47. Kd3 {[%clk 0:00:02.5]} 47... Rf1 {[%clk 0:00:00.9]} 48. Kc2 {[%clk
0:00:02.4]} 48... Rxf3 {[%clk 0:00:00.5]} 49. Kb3 {[%clk 0:00:01.9]} 49... Rxg3
{[%clk 0:00:00.2]} 50. Rxa3 {[%clk 0:00:01.3]} 50... Rh3 {[%clk 0:00:00.1]} 51.
Ra5 {[%clk 0:00:00.9]} 1-0

[Event "Live Chess"]
[Site "Chess.com"]
[Date "2024.06.02"]
[Round "-"]
[White "TedUdale"]
[Black "TigerTank70"]
[Result "0-1"]
[WhiteElo "2104"]
[BlackElo "2234"]
[TimeControl "300"]
[EndTime "2:33:36 PDT"]
[Termination "TigerTank70 won by resignation"]

1. e4 {[%clk 0:04:58]} 1... e5 {[%clk 0:04:58.9]} 2. Nf3 {[%clk 0:04:57.2]} 2...
Nc6 {[%clk 0:04:57.8]} 3. Bc4 {[%clk 0:04:56.2]} 3... Nf6 {[%clk 0:04:55.3]} 4.
c3 {[%clk 0:04:53.5]} 4... Be7 {[%clk 0:04:50.7]} 5. d4 {[%clk 0:04:52.1]} 5...
d6 {[%clk 0:04:46]} 6. dxe5 {[%clk 0:04:50]} 6... Nxe5 {[%clk 0:04:44.2]} 7.
Nxe5 {[%clk 0:04:48.6]} 7... dxe5 {[%clk 0:04:42.7]} 8. Qe2 {[%clk 0:04:47]}
8... O-O {[%clk 0:04:41.2]} 9. O-O {[%clk 0:04:45.2]} 9... c6 {[%clk 0:04:40.4]}
10. h3 {[%clk 0:04:40.2]} 10... b5 {[%clk 0:04:37.9]} 11. Bb3 {[%clk 0:04:39.2]}
11... a5 {[%clk 0:04:36.5]} 12. a3 {[%clk 0:04:37.9]} 12... Ba6 {[%clk
0:04:35.1]} 13. Qe3 {[%clk 0:04:25.1]} 13... a4 {[%clk 0:04:26.1]} 14. Ba2
{[%clk 0:04:20]} 14... b4 {[%clk 0:04:22.8]} 15. Rd1 {[%clk 0:04:18]} 15...
Qxd1+ {[%clk 0:04:20.7]} 0-1

[Event "Live Chess"]
[Site "Chess.com"]
[Date "2024.06.02"]
[Round "-"]
[White "grillage"]
[Black "lateforthesky"]
[Result "0-1"]
[WhiteElo "1864"]
[BlackElo "2081"]
[TimeControl "300"]
[EndTime "2:33:51 PDT"]
[Termination "lateforthesky won by resignation"]

1. d4 {[%clk 0:04:56.9]} 1... g6 {[%clk 0:04:58.4]} 2. Nf3 {[%clk 0:04:54.6]}
2... Bg7 {[%clk 0:04:57.4]} 3. g3 {[%clk 0:04:50.7]} 3... d6 {[%clk 0:04:55.8]}
4. Bg2 {[%clk 0:04:50.1]} 4... Nf6 {[%clk 0:04:53.3]} 5. c4 {[%clk 0:04:48.4]}
5... O-O {[%clk 0:04:51.8]} 6. O-O {[%clk 0:04:47.4]} 6... Nbd7 {[%clk
0:04:51.4]} 7. d5 {[%clk 0:04:43]} 7... Nb6 {[%clk 0:04:45.6]} 8. Qc2 {[%clk
0:04:36.2]} 8... Bf5 {[%clk 0:04:40.6]} 9. Qb3 {[%clk 0:04:26.5]} 9... Qc8
{[%clk 0:04:37.8]} 10. Re1 {[%clk 0:04:23.5]} 10... Bh3 {[%clk 0:04:35.1]} 11.
Bh1 {[%clk 0:04:22.2]} 11... h6 {[%clk 0:04:33.9]} 12. Be3 {[%clk 0:04:00.5]}
12... e5 {[%clk 0:04:31.4]} 13. dxe6 {[%clk 0:03:56.9]} 13... Bxe6 {[%clk
0:04:29.7]} 14. Nbd2 {[%clk 0:03:53.1]} 14... Ng4 {[%clk 0:04:13.9]} 15. Bd4
{[%clk 0:03:48.3]} 15... Ne5 {[%clk 0:04:08.7]} 16. Nxe5 {[%clk 0:03:36.5]}
16... dxe5 {[%clk 0:04:06.8]} 17. Bc3 {[%clk 0:03:34.5]} 17... c6 {[%clk
0:04:00.1]} 18. Qb4 {[%clk 0:03:18.5]} 18... Qc7 {[%clk 0:03:46.3]} 19. b3
{[%clk 0:03:15.8]} 19... Rad8 {[%clk 0:03:42.3]} 20. Rad1 {[%clk 0:03:12.3]}
20... Rd7 {[%clk 0:03:40.4]} 21. Nf3 {[%clk 0:03:08.4]} 21... Rfd8 {[%clk
0:03:37.8]} 22. Rxd7 {[%clk 0:03:06.3]} 22... Rxd7 {[%clk 0:03:36.7]} 23. Qa3
{[%clk 0:03:00]} 23... Nc8 {[%clk 0:03:04.8]} 24. Qb2 {[%clk 0:02:57.5]} 24...
f6 {[%clk 0:02:58.4]} 25. Qc2 {[%clk 0:02:52.3]} 25... Bf7 {[%clk 0:02:50.8]}
26. Nh4 {[%clk 0:02:49.7]} 26... Ne7 {[%clk 0:02:48.8]} 27. Rd1 {[%clk
0:02:45.8]} 27... f5 {[%clk 0:02:35.5]} 28. Nf3 {[%clk 0:02:32.1]} 28... Rxd1+
{[%clk 0:02:12.6]} 29. Qxd1 {[%clk 0:02:30.2]} 29... g5 {[%clk 0:02:08.2]} 30.
Qa1 {[%clk 0:02:01]} 30... Ng6 {[%clk 0:02:06]} 31. Bg2 {[%clk 0:01:44.4]} 31...
Be6 {[%clk 0:01:58.2]} 32. Qd1 {[%clk 0:01:39.4]} 32... Qd7 {[%clk 0:01:54.4]}
33. Qxd7 {[%clk 0:01:24.3]} 33... Bxd7 {[%clk 0:01:53.5]} 34. e3 {[%clk
0:01:22.2]} 34... Kf7 {[%clk 0:01:52.4]} 35. Kf1 {[%clk 0:01:20.6]} 35... Bf6
{[%clk 0:01:49.2]} 36. Ke2 {[%clk 0:01:19.1]} 36... g4 {[%clk 0:01:44.9]} 37.
Ne1 {[%clk 0:01:15.4]} 37... h5 {[%clk 0:01:43.8]} 38. h3 {[%clk 0:01:11.1]}
38... f4 {[%clk 0:01:35.6]} 39. exf4 {[%clk 0:01:08.1]} 39... gxh3 {[%clk
0:01:32.1]} 40. Bf3 {[%clk 0:01:01.6]} 40... exf4 {[%clk 0:01:29.1]} 41. Bxh5
{[%clk 0:00:57.5]} 41... Bxc3 {[%clk 0:01:27]} 0-1

[Event "Live Chess"]
[Site "Chess.com"]
[Date "2024.06.02"]
[Round "-"]
[White "MasterCaptainHaddock"]
[Black "LL220284LL"]
[Result "0-1"]
[WhiteElo "1816"]
[BlackElo "2507"]
[TimeControl "300"]
[EndTime "2:34:11 PDT"]
[Termination "LL220284LL won by resignation"]

1. e4 {[%clk 0:04:56.4]} 1... g6 {[%clk 0:04:57.9]} 2. Nf3 {[%clk 0:04:54.8]}
2... Bg7 {[%clk 0:04:57.8]} 3. d4 {[%clk 0:04:54.1]} 3... d6 {[%clk 0:04:57.2]}
4. Bc4 {[%clk 0:04:53.8]} 4... Nf6 {[%clk 0:04:54.1]} 5. Nc3 {[%clk 0:04:52.4]}
5... c6 {[%clk 0:04:49.8]} 6. Be3 {[%clk 0:04:50.8]} 6... d5 {[%clk 0:04:48]} 7.
exd5 {[%clk 0:04:50]} 7... cxd5 {[%clk 0:04:47.9]} 8. Bb3 {[%clk 0:04:49.7]}
8... Nc6 {[%clk 0:04:46.3]} 9. h3 {[%clk 0:04:49.3]} 9... O-O {[%clk 0:04:44.2]}
10. O-O {[%clk 0:04:48.8]} 10... Na5 {[%clk 0:04:34]} 11. Re1 {[%clk 0:04:47.6]}
11... Bf5 {[%clk 0:04:29.9]} 12. Qd2 {[%clk 0:04:41.9]} 12... Nxb3 {[%clk
0:04:27.9]} 13. axb3 {[%clk 0:04:40.4]} 13... Ne4 {[%clk 0:04:27.5]} 14. Nxe4
{[%clk 0:04:36.2]} 14... Bxe4 {[%clk 0:04:27.4]} 15. Ng5 {[%clk 0:04:32.1]}
15... Bf5 {[%clk 0:04:26.6]} 16. g4 {[%clk 0:04:28.4]} 16... Bd7 {[%clk
0:04:24.5]} 17. Nf3 {[%clk 0:04:27.3]} 17... a6 {[%clk 0:04:20.7]} 18. Bh6
{[%clk 0:04:25.7]} 18... Rc8 {[%clk 0:04:10.4]} 19. Bxg7 {[%clk 0:04:24.2]}
19... Kxg7 {[%clk 0:04:09.6]} 20. c3 {[%clk 0:04:23.8]} 20... Re8 {[%clk
0:04:07.6]} 21. Qg5 {[%clk 0:04:22.6]} 21... Bc6 {[%clk 0:03:56]} 22. h4 {[%clk
0:03:55.1]} 22... Qd6 {[%clk 0:03:48.4]} 23. h5 {[%clk 0:03:44.6]} 23... f6
{[%clk 0:03:45]} 24. h6+ {[%clk 0:03:42.9]} 24... Kg8 {[%clk 0:03:36.6]} 25. Qh4
{[%clk 0:03:37.5]} 25... Qf4 {[%clk 0:03:31.5]} 26. Kg2 {[%clk 0:03:19.8]} 26...
e5 {[%clk 0:03:26.5]} 27. dxe5 {[%clk 0:03:17.1]} 27... fxe5 {[%clk 0:03:10]}
28. Rad1 {[%clk 0:03:04.4]} 28... d4 {[%clk 0:02:59.6]} 29. Rd3 {[%clk
0:02:50.2]} 29... e4 {[%clk 0:02:54.6]} 30. Rxd4 {[%clk 0:02:07.2]} 30... Qxf3+
{[%clk 0:02:52.8]} 31. Kg1 {[%clk 0:02:06.4]} 31... e3 {[%clk 0:02:46.6]} 0-1

[Event "Live Chess"]
[Site "Chess.com"]
[Date "2024.06.02"]
[Round "-"]
[White "Tatarinov_Maxim"]
[Black "AndyJWise"]
[Result "1-0"]
[WhiteElo "2288"]
[BlackElo "1036"]
[TimeControl "300"]
[EndTime "2:34:24 PDT"]
[Termination "Tatarinov_Maxim won by resignation"]

1. Nf3 {[%clk 0:04:57.1]} 1... Nf6 {[%clk 0:04:56.9]} 2. c4 {[%clk 0:04:55.5]}
2... c5 {[%clk 0:04:52.5]} 3. g3 {[%clk 0:04:54.7]} 3... g6 {[%clk 0:04:49.1]}
4. Bg2 {[%clk 0:04:54.1]} 4... Bg7 {[%clk 0:04:47.7]} 5. O-O {[%clk 0:04:53.6]}
5... O-O {[%clk 0:04:46.5]} 6. Nc3 {[%clk 0:04:53.5]} 6... a5 {[%clk 0:04:33.2]}
7. d4 {[%clk 0:04:50.3]} 7... cxd4 {[%clk 0:04:31.6]} 8. Nxd4 {[%clk 0:04:50.2]}
8... Nc6 {[%clk 0:04:28.4]} 9. b3 {[%clk 0:04:49]} 9... Qb6 {[%clk 0:04:19.2]}
10. Ndb5 {[%clk 0:04:45.3]} 10... e5 {[%clk 0:03:57.9]} 11. Be3 {[%clk
0:04:43.3]} 11... Qd8 {[%clk 0:03:44.3]} 12. Rc1 {[%clk 0:04:31.3]} 12... Re8
{[%clk 0:03:29.5]} 13. Bc5 {[%clk 0:04:18.9]} 13... b6 {[%clk 0:03:20.7]} 14.
Bd6 {[%clk 0:04:17.1]} 14... Nd4 {[%clk 0:03:11.8]} 15. Bxa8 {[%clk 0:04:12.4]}
15... Nxb5 {[%clk 0:03:03.9]} 16. Nxb5 {[%clk 0:04:12.3]} 16... Ba6 {[%clk
0:02:53.5]} 17. Bg2 {[%clk 0:04:05.6]} 17... Bxb5 {[%clk 0:02:51]} 18. cxb5
{[%clk 0:04:05.5]} 18... e4 {[%clk 0:02:44.2]} 19. Bc7 {[%clk 0:04:02.2]} 19...
Qe7 {[%clk 0:02:38.6]} 20. Bxb6 {[%clk 0:04:01.3]} 20... e3 {[%clk 0:02:34.3]}
21. Bxe3 {[%clk 0:04:00]} 21... Ng4 {[%clk 0:02:30.1]} 22. Bd4 {[%clk
0:03:53.1]} 22... Bxd4 {[%clk 0:02:24.9]} 23. Qxd4 {[%clk 0:03:50.3]} 23... Qxe2
{[%clk 0:02:23]} 24. Rfe1 {[%clk 0:03:42.8]} 24... Qxe1+ {[%clk 0:02:20.5]} 25.
Rxe1 {[%clk 0:03:42.7]} 25... Rxe1+ {[%clk 0:02:19.1]} 26. Bf1 {[%clk
0:03:42.2]} 1-0

[Event "Live Chess"]
[Site "Chess.com"]
[Date "2024.06.02"]
[Round "-"]
[White "crais6"]
[Black "Queensandpawns"]
[Result "0-1"]
[WhiteElo "1604"]
[BlackElo "2282"]
[TimeControl "300"]
[EndTime "2:34:26 PDT"]
[Termination "Queensandpawns won by checkmate"]

1. d4 {[%clk 0:04:56.4]} 1... e5 {[%clk 0:04:59.9]} 2. dxe5 {[%clk 0:04:50.7]}
2... Nc6 {[%clk 0:04:59.4]} 3. Nf3 {[%clk 0:04:49.1]} 3... Qe7 {[%clk
0:04:59.3]} 4. Nc3 {[%clk 0:04:43.8]} 4... Nxe5 {[%clk 0:04:58.2]} 5. e3 {[%clk
0:04:42.5]} 5... c6 {[%clk 0:04:54.6]} 6. Be2 {[%clk 0:04:40.8]} 6... d5 {[%clk
0:04:54.2]} 7. O-O {[%clk 0:04:38.6]} 7... Bf5 {[%clk 0:04:52.8]} 8. Nxe5 {[%clk
0:04:33.8]} 8... Qxe5 {[%clk 0:04:52.7]} 9. Bf3 {[%clk 0:04:29.1]} 9... Bd6
{[%clk 0:04:51.3]} 10. g3 {[%clk 0:04:26.7]} 10... h5 {[%clk 0:04:50.4]} 11. h4
{[%clk 0:04:20.4]} 11... O-O-O {[%clk 0:04:48.9]} 12. Ne2 {[%clk 0:04:16.4]}
12... g5 {[%clk 0:04:47.7]} 13. Qd4 {[%clk 0:04:13.7]} 13... gxh4 {[%clk
0:04:38.8]} 14. Qxa7 {[%clk 0:03:58.8]} 14... hxg3 {[%clk 0:04:36.4]} 15. fxg3
{[%clk 0:03:51.2]} 15... h4 {[%clk 0:04:33.7]} 16. g4 {[%clk 0:03:40.5]} 16...
Qh2# {[%clk 0:04:31.1]} 0-1